bitfinex-derivatives/quotes_ETHF0:USTF0_20250116
["timestamp","ask_amount","ask_price","bid_price","bid_amount"]
[1736990842390,3.2078,3401.4,3400.8,2.24790178]
[1736990842590,0.588,3401.2,3400.8,2.83596178]
[1736990842786,3.2078,3401.4,3401.1,2.24790178]
[1736990843083,3.2078,3401.4,3401.2,1.248]
[1736990843289,3.2078,3401.4,3401.3,0.4719]
[1736990844084,3.79576,3401.4,3401.3,0.4719]
[1736990844991,0.58796,3401.4,3401.3,0.4719]
[1736990848896,0.58797,3401.3,3401.2,1.247]
[1736990850591,1.04507,3401.4,3401.2,1.247]
[1736990850792,0.9514,3401.7,3401.2,1.83499]
[1736990850793,0.58795,3401.5,3401.2,1.83499]
[1736990850988,0.58795,3401.5,3401.3,0.4422]
[1736990851194,0.58795,3401.5,3401.4,0.4833]
[1736990854298,0.477,3401.7,3401.4,0.4833]
[1736990854503,0.58794,3401.5,3401.4,0.924]
[1736990855100,0.4723,3401.8,3401.4,0.924]
[1736990855101,0.58793,3401.6,3401.4,0.924]
[1736990855898,0.58793,3401.6,3401.4,1.51195]
[1736990856103,0.58793,3401.6,3401.4,0.924]
[1736990856703,0.4723,3401.8,3401.4,0.924]
[1736990856907,1.06019,3401.8,3401.7,2.24790178]
[1736990857107,0.4723,3401.8,3401.7,2.24790178]
[1736990857403,0.39096096,3401.9,3401.7,2.24790178]
[1736990857613,0.58786,3402.0,3401.7,2.83579178]
[1736990857805,0.58786,3402.0,3401.8,0.4628]
[1736990858006,0.58786,3402.0,3401.9,1.247]
[1736990858207,0.58784,3402.1,3401.9,1.247]
[1736990858408,0.58784,3402.1,3402.0,2.69600178]
[1736990858604,0.58784,3402.1,3402.0,3.17120178]
[1736990858805,3.79561,3402.3,3402.0,3.17120178]
[1736990859010,3.2078,3402.3,3402.0,3.17120178]
[1736990859207,3.2078,3402.3,3402.1,0.58783]
[1736990859407,3.2078,3402.3,3402.2,0.58782]
[1736990859802,3.2078,3402.3,3402.1,0.58783]
[1736990860507,0.58782,3402.2,3402.0,3.17120178]
[1736990860707,3.2078,3402.3,3402.0,3.17120178]
[1736990861411,3.79561,3402.3,3402.0,3.17120178]
[1736990861617,3.2078,3402.3,3402.0,3.17120178]
[1736990861812,3.2078,3402.3,3402.0,3.75904178]
[1736990862312,3.2078,3402.3,3402.0,3.17120178]
[1736990862816,3.7956,3402.3,3402.0,3.75905178]
[1736990863015,3.2078,3402.3,3402.0,3.75905178]
[1736990863210,3.2078,3402.3,3402.0,3.17120178]
[1736990863413,0.58775,3402.6,3402.1,3.2078]
[1736990863606,0.58775,3402.6,3402.5,2.24790178]
[1736990863812,3.2078,3402.9,3402.5,2.24790178]
[1736990863813,0.58774,3402.7,3402.5,2.24790178]
[1736990864013,0.58774,3402.7,3402.6,1.7269]
[1736990866715,3.2078,3402.9,3402.6,1.7269]
[1736990867421,0.58773,3402.7,3402.6,1.7269]
[1736990868119,0.58772,3402.8,3402.6,1.7269]
[1736990868509,0.5877,3402.9,3402.6,1.7269]
[1736990868709,0.58772,3402.8,3402.6,1.7269]
[1736990871314,0.4669,3403.0,3402.6,1.247]
[1736990871516,0.58773,3402.7,3402.6,1.247]
[1736990871817,0.58772,3402.8,3402.6,1.247]
[1736990874018,0.58773,3402.7,3402.6,1.247]
[1736990874823,0.4669,3403.0,3402.6,1.247]
[1736990875017,0.5877,3402.9,3402.6,1.247]
[1736990875524,0.5877,3402.9,3402.6,1.7211]
[1736990877415,0.4669,3403.0,3402.8,2.24790178]
[1736990877614,0.4669,3403.0,3402.9,3.7955]
[1736990878926,0.58759,3403.6,3402.9,3.2078]
[1736990879222,0.58759,3403.6,3403.5,2.24790178]
[1736990880825,1.04757,3403.7,3403.5,2.24790178]
[1736990881215,0.46,3403.7,3403.5,2.24790178]
[1736990881826,0.58758,3403.6,3403.5,2.24790178]
[1736990882524,0.58759,3403.5,3403.4,1.245]
[1736990883425,0.46,3403.7,3403.4,1.245]
[1736990883722,0.46,3403.7,3403.6,2.24790178]
[1736990883924,1.04756,3403.7,3403.6,2.24790178]
[1736990884628,0.46,3403.7,3403.6,2.24790178]
[1736990884827,1.04756,3403.7,3403.6,2.24790178]
[1736990885024,0.46,3403.7,3403.6,2.83548178]
[1736990885220,0.4677,3404.0,3403.7,0.58755]
[1736990885422,1.05521,3404.0,3403.9,2.24790178]
[1736990885732,0.4446,3404.1,3403.9,2.24790178]
[1736990885923,0.4446,3404.1,3404.0,0.58751]
[1736990886119,0.4446,3404.1,3403.9,2.24790178]
[1736990886326,0.4446,3404.1,3403.9,2.71500178]
[1736990886622,0.4446,3404.1,3403.9,3.30252178]
[1736990887419,0.9293,3404.5,3403.9,2.71500178]
[1736990887725,1.42662968,3404.4,3404.2,2.24790178]
[1736990888030,1.42661968,3404.4,3404.3,1.245]
[1736990888732,1.03594,3404.4,3404.3,1.245]
[1736990897426,0.4485,3404.4,3404.3,1.245]
[1736990897635,0.4485,3404.4,3404.3,1.6982]
[1736990897933,0.4485,3404.4,3404.3,2.28566]
[1736990898133,0.58742,3404.6,3404.3,2.28566]
[1736990898336,0.58742,3404.6,3404.4,0.4804]
[1736990898632,0.58742,3404.6,3404.4,0.9295]
[1736990901238,0.58742,3404.5,3404.4,0.9295]
[1736990902029,0.4872,3404.8,3404.4,0.9295]
[1736990902431,0.4872,3404.8,3404.4,1.51693]
[1736990902432,0.5874,3404.7,3404.4,1.51693]
[1736990902832,0.4872,3404.8,3404.4,0.9295]
[1736990903027,0.58739,3404.7,3404.4,1.51693]
[1736990903229,0.4872,3404.8,3404.4,1.51693]
[1736990903230,0.4872,3404.8,3404.5,2.24790178]
[1736990903433,0.4872,3404.8,3404.6,0.5874]
[1736990903636,0.4872,3404.8,3404.5,2.24790178]
[1736990903836,1.07457,3404.8,3404.5,2.83531178]
[1736990904035,0.4872,3404.8,3404.5,2.24790178]
[1736990904236,0.58741,3404.6,3404.4,0.9295]
[1736990904740,0.4872,3404.8,3404.4,0.9295]
[1736990904939,0.4872,3404.8,3404.6,0.5874]
[1736990905537,3.2078,3405.0,3404.8,0.58736]
[1736990905736,3.2078,3405.0,3404.9,0.9266]
[1736990905939,3.79514,3405.0,3404.9,0.9266]
[1736990906135,3.2078,3405.0,3404.9,0.9266]
[1736990906327,0.58726,3405.5,3404.9,0.9266]
[1736990906532,0.58726,3405.5,3405.2,0.58729]
[1736990906730,0.58728,3405.4,3405.1,5.45570178]
[1736990906936,0.58734,3405.0,3404.9,0.9266]
[1736990907133,0.58734,3405.0,3404.9,1.243]
[1736990907837,0.4712,3405.2,3404.8,2.24790178]
[1736990908038,0.58735,3404.9,3404.8,2.24790178]
[1736990908240,0.58735,3404.9,3404.8,3.49090178]
[1736990909538,0.58735,3404.9,3404.8,2.24790178]
[1736990909735,0.58737,3404.8,3404.7,3.2078]
[1736990909935,0.58737,3404.8,3404.7,4.4508]
[1736990912435,0.58737,3404.8,3404.7,3.2078]
[1736990914646,0.4776,3405.1,3404.4,0.58744]
[1736990914840,1.0536,3404.7,3404.5,1.243]
[1736990915145,1.05359,3404.7,3404.5,1.243]
[1736990915643,0.5874,3404.6,3404.5,1.7143]
[1736990916235,0.4662,3404.7,3404.5,1.7143]
[1736990916442,1.05359,3404.7,3404.5,1.7143]
[1736990916945,0.4776,3405.1,3404.7,0.58738]
[1736990917434,0.58739,3404.7,3404.5,4.54962178]
[1736990917643,0.58739,3404.7,3404.5,3.96220178]
[1736990917842,0.4445,3404.6,3404.5,3.96220178]
[1736990918346,0.4445,3404.6,3404.5,4.54962178]
[1736990918945,0.4445,3404.6,3404.5,3.96220178]
[1736990919534,0.4445,3404.6,3404.5,4.54962178]
[1736990920244,0.58737,3404.9,3404.5,4.54962178]
[1736990920454,0.58737,3404.8,3404.5,4.54962178]
[1736990921541,0.5874,3404.7,3404.5,3.96220178]
[1736990922250,0.58738,3404.8,3404.5,4.54962178]
[1736990922948,0.4445,3405.0,3404.5,3.49090178]
[1736990923137,0.5874,3404.6,3404.5,3.49090178]
[1736990925940,0.5874,3404.6,3404.5,1.243]
[1736990926746,0.5874,3404.6,3404.3,4.75025]
[1736990927051,0.5874,3404.6,3404.5,1.243]
[1736990930652,0.58738,3404.8,3404.5,1.83041]
[1736990931042,0.58738,3404.8,3404.6,0.4707]
[1736990931948,0.58738,3404.8,3404.6,1.0581]
[1736990932746,0.58736,3404.9,3404.7,3.79518]
[1736990933146,0.58736,3404.9,3404.7,0.58738]
[1736990933848,0.4776,3405.1,3404.6,0.4707]
[1736990934049,0.58738,3404.8,3404.6,1.0581]
[1736990934253,0.58739,3404.7,3404.6,0.4707]
[1736990935249,0.58739,3404.7,3404.6,1.0581]
[1736990936053,0.58739,3404.7,3404.6,0.4707]
[1736990936856,0.5874,3404.6,3404.5,1.243]
[1736990937156,1.0669,3404.6,3404.5,1.243]
[1736990940456,0.58744,3404.4,3404.3,3.2078]
[1736990940655,0.58744,3404.4,3404.3,4.4498]
[1736990941059,0.468,3404.5,3404.0,0.4866]
[1736990941260,0.58749,3404.1,3404.0,0.4866]
[1736990941464,0.58749,3404.1,3404.0,1.7286]
[1736990943463,0.4444,3404.4,3404.0,1.7286]
[1736990943658,0.58747,3404.3,3404.0,1.7286]
[1736990944461,0.58747,3404.3,3404.0,2.31611]
[1736990944660,0.4444,3404.4,3404.0,1.7286]
[1736990944962,0.58742,3404.6,3404.3,3.79525]
[1736990945163,0.58742,3404.6,3404.4,0.4559]
[1736990946762,1.03449,3404.7,3404.4,1.04333]
[1736990946966,10.32719202,3405.0,3404.6,0.5874]
[1736990947169,0.58737,3404.8,3404.7,0.4426]
[1736990947563,0.58737,3404.8,3404.7,1.6846]
[1736990948166,0.58737,3404.8,3404.7,1.242]
[1736990950473,0.58737,3404.8,3404.7,2.27768091]
[1736990951473,0.58737,3404.8,3404.7,1.242]
[1736990953980,9.76708624,3404.9,3404.7,1.242]
[1736990954679,9.17972624,3405.0,3404.7,1.242]
[1736990954877,0.58737,3404.8,3404.7,1.242]
[1736990963677,9.17972624,3405.0,3404.7,1.242]
[1736990963976,9.17972624,3405.0,3404.8,0.58736]
[1736990964176,9.17972624,3405.0,3404.9,3.6754]
[1736990964481,9.17972624,3405.0,3404.9,4.12]
[1736990965277,0.58733,3405.1,3404.9,4.12]
[1736990965473,0.58731,3405.2,3405.0,0.4607]
[1736990965679,0.58732,3405.1,3405.0,0.4607]
[1736990966186,0.58727,3405.4,3405.0,0.4607]
[1736990966378,0.58727,3405.4,3405.1,0.58731]
[1736990966882,3.79503,3405.6,3405.3,0.58728]
[1736990967082,3.79503,3405.6,3405.4,2.1792]
[1736990967282,0.58723,3405.6,3405.5,0.4824]
[1736990967586,0.58722,3405.7,3405.5,0.4824]
[1736990968488,0.5872,3405.8,3405.5,0.4824]
[1736990968988,0.58722,3405.7,3405.5,0.4824]
[1736990969189,0.4417,3405.9,3405.5,0.4824]
[1736990969486,0.5872,3405.8,3405.5,0.4824]
[1736990970388,0.4417,3405.9,3405.5,0.4824]
[1736990970588,0.58722,3405.7,3405.5,0.4824]
[1736990971692,0.4417,3405.9,3405.5,0.4824]
[1736990971990,0.5872,3405.8,3405.5,0.4824]
[1736990972192,0.4417,3405.9,3405.5,0.4824]
[1736990972388,0.58721,3405.8,3405.5,0.4824]
[1736990972890,0.4417,3405.9,3405.5,2.7263112]
[1736990973393,4.74046,3406.1,3405.5,2.7263112]
[1736990973394,9.17972624,3406.2,3405.8,6.0389012]
[1736990973689,9.76686624,3406.2,3405.9,1.06748]
[1736990973890,9.76686624,3406.2,3406.0,0.4624]
[1736990974089,9.17972624,3406.2,3406.1,1.24]
[1736990974292,9.17972624,3406.2,3406.1,3.4839112]
[1736990974681,9.17972624,3406.2,3406.1,4.0710612]
[1736990974885,0.58711,3406.4,3406.1,4.0710612]
[1736990975587,0.4853,3406.5,3406.1,3.4839112]
[1736990975793,0.4853,3406.5,3406.4,0.58709]
[1736990976191,0.4853,3406.5,3406.4,1.03049]
[1736990976390,0.58703,3406.8,3406.4,3.2744012]
[1736990976586,1.03143,3406.8,3406.5,0.4644]
[1736990976792,0.58704,3406.7,3406.5,0.4644]
[1736990980486,0.4444,3406.8,3406.5,0.4644]
[1736990980691,0.58706,3406.6,3406.5,0.4644]
[1736990982095,0.58706,3406.6,3406.4,2.6873112]
[1736990983195,0.58706,3406.6,3406.4,0.4434]
[1736990983796,0.58706,3406.6,3406.5,1.24]
[1736990987398,0.58706,3406.6,3406.5,2.27449769]
[1736990993504,0.58709,3406.4,3406.3,3.2078]
[1736990993696,0.58709,3406.4,3406.3,5.48029769]
[1736990994899,0.58709,3406.4,3406.3,4.4458]
[1736990995297,0.58709,3406.4,3406.3,3.2078]
[1736990995501,0.58709,3406.4,3406.3,4.4458]
[1736990996606,0.58709,3406.4,3406.3,1.238]
[1736990998811,0.9177,3406.5,3406.1,1.03449769]
[1736990999011,0.58713,3406.2,3406.1,1.03449769]
[1736990999215,0.58713,3406.2,3406.1,2.27249769]
[1736991000312,0.456,3406.3,3405.8,3.2078]
[1736991000500,3.2078,3405.9,3405.2,1.03449769]
[1736991000700,1.03449769,3405.6,3405.3,1.238]
[1736991001005,0.58727,3405.4,3405.3,1.238]
[1736991001205,0.58726,3405.5,3405.4,1.03449769]
[1736991003307,1.3841,3405.8,3405.3,1.238]
[1736991003611,0.58727,3405.4,3405.3,1.238]
[1736991003811,1.3841,3405.8,3405.3,1.238]
[1736991004007,0.58727,3405.4,3405.3,1.238]
[1736991005513,1.46817,3405.4,3404.8,0.4656]
[1736991005707,0.58734,3405.0,3404.9,1.238]
[1736991011510,0.58739,3404.7,3404.6,2.2427906]
[1736991011712,0.58739,3404.7,3404.6,1.238]
[1736991012710,0.9695,3405.2,3404.2,1.6902]
[1736991012711,3.2078,3404.9,3404.2,1.6902]
[1736991012911,0.58746,3404.3,3404.2,1.238]
[1736991014316,0.58754,3403.8,3403.7,0.9495]
[1736991014521,0.58754,3403.8,3403.7,0.4856]
[1736991015918,0.9269,3403.9,3403.3,42.038]
[1736991016123,0.58761,3403.4,3403.3,1.238]
[1736991016417,0.4547,3403.8,3403.2,3.2078]
[1736991016418,0.58763,3403.3,3403.2,3.2078]
[1736991016825,0.58766,3403.1,3403.0,42.038]
[1736991017026,0.58766,3403.1,3403.0,1.238]
[1736991018124,0.471,3403.2,3402.9,0.4663]
[1736991018125,0.58768,3403.0,3402.9,1.7053]
[1736991020127,0.471,3403.2,3402.7,4.899]
[1736991020128,0.58772,3402.8,3402.7,4.899]
[1736991020326,0.58772,3402.8,3402.7,3.2078]
[1736991020527,0.58772,3402.8,3402.7,4.4448]
[1736991023147,0.58772,3402.8,3402.7,3.2078]
[1736991023845,0.58777,3402.5,3402.4,1.7155]
[1736991024341,0.58777,3402.5,3402.4,0.4785]
[1736991024546,0.58777,3402.5,3402.4,41.2785]
[1736991026350,0.58777,3402.5,3402.4,40.8]
[1736991027242,0.4436,3402.7,3402.4,40.8]
[1736991027445,0.58777,3402.5,3402.4,40.8]
[1736991028348,0.58779,3402.4,3402.2,5.4505906]
[1736991028645,0.58778,3402.5,3402.2,5.4505906]
[1736991028843,0.4436,3402.7,3402.2,5.4505906]
[1736991029237,0.58778,3402.5,3402.2,5.4505906]
[1736991029536,0.58772,3402.8,3402.4,0.58778]
[1736991029947,2.2427906,3402.5,3401.1,3.2078]
[1736991030145,0.58791,3401.7,3401.6,0.4858]
[1736991030341,3.2078,3402.0,3401.6,0.4858]
[1736991030342,0.58788,3401.9,3401.6,0.4858]
[1736991030543,0.58789,3401.8,3401.6,0.4858]
[1736991032750,4.5902,3402.4,3401.6,0.4858]
[1736991032944,0.58791,3401.7,3401.6,0.4858]
[1736991033943,4.5902,3402.4,3401.6,0.4858]
[1736991034249,0.5879,3401.8,3401.6,0.4858]
[1736991034441,0.5879,3401.8,3401.6,42.5238]
[1736991034641,0.5879,3401.8,3401.6,1.7238]
[1736991034851,0.5879,3401.8,3401.7,0.4483]
[1736991052557,3.2078,3401.8,3400.6,4.4438]
[1736991052760,1.3843,3401.7,3401.1,0.9409]
[1736991053060,0.58797,3401.3,3401.2,0.4509]
[1736991053858,0.58797,3401.4,3401.2,0.4509]
[1736991054157,3.2078,3401.8,3401.3,3.4787906]
[1736991054362,3.6714,3402.3,3402.0,0.58785]
[1736991054562,3.6714,3402.3,3402.2,2.2427906]
[1736991054563,3.2078,3402.3,3402.2,2.2427906]
[1736991054866,3.2078,3403.7,3402.4,2.669]
[1736991055054,0.9337,3404.2,3403.6,5.4505906]
[1736991055257,0.4788,3404.2,3403.9,2.2427906]
[1736991056156,0.4788,3404.2,3403.7,1.236]
[1736991056366,0.58754,3403.8,3403.7,1.236]
[1736991057761,3.2078,3404.0,3403.2,4.4438]
[1736991057961,0.5877,3402.9,3402.5,1.236]
[1736991058162,0.4884,3402.8,3402.4,2.1589]
[1736991058465,0.4884,3402.8,3402.4,1.82377]
[1736991059360,0.4884,3402.8,3402.5,0.58777]
[1736991059664,0.4884,3402.8,3402.5,2.8305506]
[1736991060954,3.2078,3403.3,3402.5,2.2427906]
[1736991061154,0.4428,3403.2,3402.8,2.8304906]
[1736991061466,0.4428,3403.2,3402.8,2.2427906]
[1736991061665,1.03045,3403.2,3402.9,0.4474]
[1736991061863,0.4428,3403.2,3402.9,0.4474]
[1736991062463,0.4428,3403.2,3402.7,3.2078]
[1736991062671,0.58766,3403.1,3402.7,3.2078]
[1736991062861,0.58772,3402.8,3402.7,3.2078]
[1736991063363,0.4428,3403.2,3402.7,3.2078]
[1736991063563,0.58766,3403.1,3402.7,3.2078]
[1736991063759,0.4428,3403.2,3402.7,3.6552]
[1736991063969,0.58771,3402.9,3402.7,3.6552]
[1736991064771,0.58769,3403.0,3402.7,3.6552]
[1736991064965,0.4428,3403.2,3402.7,3.6552]
[1736991065172,0.58772,3402.8,3402.7,3.2078]
[1736991065562,0.58772,3402.8,3402.0,0.4706]
[1736991065563,0.58777,3402.5,3402.3,4.4438]
[1736991065762,0.4715,3402.4,3402.3,4.4438]
[1736991066259,0.4715,3402.4,3402.3,5.0316]
[1736991066462,0.4691,3402.7,3402.3,5.0316]
[1736991066770,2.2427906,3403.5,3402.3,5.0316]
[1736991066771,0.58761,3403.5,3402.9,0.58769]
[1736991066968,0.4686,3403.4,3402.9,3.2078]
[1736991067157,0.4686,3403.4,3403.1,0.58766]
[1736991067358,3.6769,3403.7,3403.0,1.6775]
[1736991067661,1.05666,3403.7,3403.2,0.58763]
[1736991068067,4.26446,3403.7,3403.2,0.58764]
[1736991068469,3.6769,3403.7,3403.0,1.6775]
[1736991068669,0.58758,3403.6,3403.1,0.58765]
[1736991069065,0.4691,3403.7,3403.0,1.6775]
[1736991069066,0.58762,3403.4,3403.0,1.6775]
[1736991069272,2.2427906,3403.6,3402.9,3.2078]
[1736991069470,0.58768,3403.0,3402.9,3.2078]
[1736991069967,0.58765,3403.2,3402.9,3.2078]
[1736991070270,0.4686,3403.3,3402.9,3.2078]
[1736991070271,0.58768,3403.0,3402.9,3.2078]
[1736991070671,0.58775,3402.6,3402.5,1.236]
[1736991071067,3.2078,3403.2,3402.5,1.236]
[1736991071265,0.58774,3402.7,3402.5,1.236]
[1736991072163,3.2078,3403.2,3402.5,1.236]
[1736991072473,0.5878,3402.3,3402.2,3.2078]
[1736991072773,0.58789,3401.8,3401.7,1.6814]
[1736991073367,0.9665,3402.2,3401.7,1.6814]
[1736991073563,0.58785,3402.1,3401.7,1.6814]
[1736991073873,0.58785,3402.1,3401.7,2.2693]
[1736991075176,0.58784,3402.1,3401.7,2.2693]
[1736991075471,0.58787,3402.0,3401.7,4.8892]
[1736991075661,0.58787,3402.0,3401.7,1.6814]
[1736991075869,0.4829,3402.2,3401.7,2.2693]
[1736991076067,0.4829,3402.2,3401.8,2.2427906]
[1736991076272,0.4829,3402.2,3402.0,0.58785]
[1736991076668,0.4829,3402.2,3402.1,0.4624]
[1736991078073,3.2078,3402.7,3402.1,5.9129906]
[1736991078274,3.2078,3402.7,3402.4,2.2427906]
[1736991078470,3.2078,3402.7,3402.5,1.236]
[1736991078676,1.05901,3402.9,3402.5,1.82376]
[1736991079171,0.4713,3402.9,3402.5,1.82376]
[1736991079370,0.58772,3402.8,3402.5,1.82376]
[1736991079968,3.6693,3403.1,3402.6,3.2078]
[1736991079969,3.2078,3403.1,3402.6,3.2078]
[1736991080279,0.58768,3403.0,3402.7,0.4859]
[1736991081176,0.58768,3403.0,3402.7,1.07363]
[1736991081776,0.4456,3403.2,3402.7,0.4859]
[1736991082076,0.58769,3403.0,3402.7,0.4859]
[1736991082472,0.58769,3403.0,3402.8,0.4614]
[1736991084184,0.5877,3402.9,3402.8,0.4614]
[1736991084375,3.6534,3403.2,3402.5,1.236]
[1736991084573,0.58774,3402.7,3402.5,1.236]
[1736991085982,0.58775,3402.6,3402.5,1.236]
[1736991086182,0.58774,3402.7,3402.5,1.236]
[1736991087778,3.2078,3402.6,3401.8,5.4505906]
[1736991087985,3.6693,3402.6,3401.9,1.235]
[1736991088179,0.58784,3402.1,3401.9,1.235]
[1736991088379,0.58783,3402.2,3401.9,1.235]
[1736991089386,0.4847,3402.5,3401.9,1.235]
[1736991089685,1.07248,3402.5,3402.0,0.58785]
[1736991089980,0.58778,3402.4,3402.0,0.58785]
[1736991090181,0.58778,3402.4,3402.1,0.489]
[1736991090884,0.4847,3402.5,3402.3,0.58779]
[1736991091083,3.2078,3403.0,3402.4,2.7294906]
[1736991091378,0.4749,3403.4,3403.1,0.58766]
[1736991091584,10.32719202,3403.5,3403.3,0.58763]
[1736991091779,10.32719202,3403.5,3403.4,40.8]
[1736991091982,10.32719202,3403.5,3403.2,2.644]
[1736991092283,10.32719202,3403.5,3403.3,0.58763]
[1736991092581,0.58756,3403.7,3403.3,0.58763]
[1736991092987,3.2078,3403.9,3403.2,2.644]
[1736991093185,0.5876,3403.5,3403.2,2.1552]
[1736991093487,1.05089,3403.6,3403.2,2.1552]
[1736991093878,1.05089,3403.6,3403.2,2.74284]
[1736991095183,0.4633,3403.6,3403.3,0.58762]
[1736991095380,0.58755,3403.8,3403.4,0.5876]
[1736991095790,0.58755,3403.8,3403.2,2.6241]
[1736991095791,0.58754,3403.8,3403.2,2.6241]
[1736991096082,0.58754,3403.8,3403.4,0.58761]
[1736991096478,0.58757,3403.7,3403.2,2.74283]
[1736991096881,0.58758,3403.6,3403.2,2.74283]
[1736991097086,3.682,3403.9,3403.2,2.1552]
[1736991097289,0.58757,3403.7,3403.3,0.58763]
[1736991097584,3.682,3403.9,3403.3,0.58762]
[1736991097585,0.58755,3403.8,3403.3,0.58762]
[1736991097976,0.58755,3403.8,3403.2,2.1552]
[1736991097977,0.4742,3403.9,3403.2,2.1552]
[1736991098173,0.58754,3403.8,3403.2,2.74284]
[1736991098382,0.4742,3403.9,3403.2,2.74284]
[1736991098581,0.4742,3403.9,3403.1,3.2078]
[1736991098789,3.2078,3403.3,3402.8,1.235]
[1736991099088,3.2078,3403.3,3401.8,12.98363189]
[1736991099089,3.2078,3402.9,3402.4,4.58402942]
[1736991099588,0.58775,3402.6,3402.4,4.58402942]
[1736991099890,3.2078,3402.9,3402.4,4.58402942]
[1736991100091,0.4727,3402.5,3402.1,5.03063]
[1736991101590,1.06047,3402.5,3402.1,4.4428]
[1736991101891,0.4727,3402.5,3402.1,5.03063]
[1736991102691,0.4727,3402.5,3402.1,4.4428]
[1736991102994,0.4727,3402.5,3402.2,0.58781]
[1736991103295,0.4727,3402.5,3402.3,0.5878]
[1736991103486,0.4727,3402.5,3402.1,5.03063]
[1736991104490,0.4727,3402.5,3402.1,4.4428]
[1736991104691,0.4727,3402.5,3402.1,3.2078]
[1736991104888,0.4727,3402.5,3402.1,4.4428]
[1736991104889,0.58781,3402.3,3402.1,4.4428]
[1736991105693,1.06929,3402.4,3402.1,4.4428]
[1736991106792,1.06929,3402.4,3402.2,0.58781]
[1736991106793,0.4815,3402.4,3402.2,0.58781]
[1736991107295,0.4815,3402.4,3401.8,40.8]
[1736991107590,0.4815,3402.4,3401.7,3.2078]
[1736991107591,0.58788,3401.9,3401.7,3.2078]
[1736991107792,3.6893,3402.4,3401.7,3.2078]
[1736991108095,3.2078,3402.4,3402.3,0.5878]
[1736991108491,3.2078,3402.4,3402.2,1.689]
[1736991108691,3.2078,3402.4,3402.3,0.5878]
[1736991109391,3.2078,3402.4,3401.8,3.2046906]
[1736991109704,0.58785,3402.1,3401.9,1.235]
[1736991110191,1.03511,3402.3,3401.9,1.82287]
[1736991110388,0.4473,3402.3,3401.9,1.82286]
[1736991110790,0.4473,3402.3,3402.0,0.58785]
[1736991110995,0.4473,3402.3,3401.5,0.454]
[1736991111188,0.899,3402.3,3401.6,1.234]
[1736991111389,0.58788,3401.9,3401.6,1.234]
[1736991111593,0.58782,3402.2,3401.8,0.58788]
[1736991111791,0.4691,3402.2,3401.9,0.58787]
[1736991111985,0.4691,3402.2,3401.8,0.58788]
[1736991112494,0.4691,3402.2,3401.7,3.2078]
[1736991112695,0.58789,3401.8,3401.7,3.2078]
[1736991112889,0.58787,3402.0,3401.7,3.2078]
[1736991113293,0.58787,3402.0,3401.5,2.27593]
[1736991113694,0.58784,3402.1,3401.6,3.2078]
[1736991113897,0.58785,3402.1,3401.7,0.5879]
[1736991114205,0.4691,3402.2,3401.6,3.2078]
[1736991114393,0.58787,3401.9,3401.6,0.58792]
[1736991114593,0.4691,3402.2,3401.5,3.9307906]
[1736991114800,0.58785,3402.1,3401.7,0.5879]
[1736991115099,0.58787,3402.0,3401.6,0.58791]
[1736991115901,0.4691,3402.2,3401.6,0.58791]
[1736991116199,0.58788,3401.9,3401.5,4.5187206]
[1736991116405,0.4691,3402.2,3401.5,1.688]
[1736991116797,0.58789,3401.8,3401.5,1.688]
[1736991117002,0.4691,3402.2,3401.5,1.688]
[1736991117202,1.02922,3401.7,3401.4,0.4487]
[1736991117508,0.4708,3401.6,3401.5,1.234]
[1736991117999,0.4413,3401.7,3401.2,44.4503]
[1736991118206,0.58797,3401.3,3401.2,3.6503]
[1736991118396,0.58797,3401.3,3401.2,3.2078]
[1736991119006,0.58804,3401.0,3400.8,3.2078]
[1736991119308,0.58804,3400.9,3400.8,3.2078]
[1736991119498,3.2078,3401.3,3400.8,3.2078]
[1736991119699,0.9431,3401.6,3400.9,2.2427906]
[1736991120000,0.4708,3401.6,3401.0,0.458]
[1736991120310,0.58797,3401.4,3401.0,1.04602]
[1736991120699,3.6491,3401.7,3401.2,5.4505906]
[1736991120902,3.6491,3401.7,3401.3,0.4842]
[1736991121099,0.58804,3400.9,3400.8,3.2078]
[1736991121404,0.58807,3400.8,3400.4,5.02993]
[1736991121794,0.4823,3401.2,3400.4,6.6845906]
[1736991122000,1.07029,3401.2,3400.8,0.58805]
[1736991122200,1.07029,3401.2,3400.9,0.9173]
[1736991122799,0.58792,3401.6,3401.0,2.2427906]
[1736991123010,0.58786,3402.0,3401.3,5.4505906]
[1736991123200,0.935,3402.1,3401.4,0.4527]
[1736991123510,0.4823,3401.9,3401.1,1.234]
[1736991123702,0.58799,3401.3,3401.1,1.234]
[1736991124204,0.58799,3401.2,3401.1,1.234]
[1736991124606,0.58789,3401.8,3401.2,0.58798]
[1736991124908,0.58792,3401.7,3401.4,0.58795]
[1736991125107,0.58792,3401.6,3401.5,0.4425]
[1736991125601,0.4823,3401.9,3401.1,1.234]
[1736991125801,0.58799,3401.2,3401.1,1.234]
[1736991126505,3.2078,3401.6,3400.7,0.4425]
[1736991126707,0.4704,3401.1,3400.7,1.03057]
[1736991126902,0.58803,3401.0,3400.7,1.03057]
[1736991127907,0.4704,3401.1,3400.7,0.4425]
[1736991128210,0.58799,3401.2,3400.8,0.58804]
[1736991128512,0.58801,3401.1,3400.8,0.58804]
[1736991129012,0.588,3401.2,3400.8,0.58804]
[1736991129313,0.588,3401.2,3400.7,2.6852906]
[1736991129314,1.07047,3401.4,3401.0,0.58802]